[Event "Live Chess"]
[Site "Chess.com"]
[Date "2023.05.20"]
[Round "-"]
[White "YrrriKharkiv"]
[Black "Daniel_Gliddon_FA"]
[Result "1-0"]
[WhiteElo "2142"]
[BlackElo "1109"]
[TimeControl "300"]
[EndTime "9:23:26 PDT"]
[Termination "YrrriKharkiv won by resignation"]

1. d4 {[%clk 0:04:53.8]} 1... Nf6 {[%clk 0:04:56.7]} 2. Nf3 {[%clk 0:04:52.1]}
2... g6 {[%clk 0:04:50.8]} 3. c4 {[%clk 0:04:51.2]} 3... Bg7 {[%clk 0:04:48]} 4.
Nc3 {[%clk 0:04:50.7]} 4... O-O {[%clk 0:04:46.4]} 5. e4 {[%clk 0:04:48.5]} 5...
d6 {[%clk 0:04:42.8]} 6. h3 {[%clk 0:04:47]} 6... Nbd7 {[%clk 0:04:38.4]} 7. Bg5
{[%clk 0:04:45.7]} 7... b6 {[%clk 0:04:34.2]} 8. Qd2 {[%clk 0:04:43.6]} 8... Bb7
{[%clk 0:04:32]} 9. Bd3 {[%clk 0:04:42.6]} 9... e5 {[%clk 0:04:19.1]} 10. d5
{[%clk 0:04:33]} 10... Nc5 {[%clk 0:04:15.9]} 11. Bc2 {[%clk 0:04:31.8]} 11...
Qe7 {[%clk 0:03:54.6]} 12. h4 {[%clk 0:04:24.9]} 12... Rad8 {[%clk 0:03:50.7]}
13. h5 {[%clk 0:04:22]} 13... c6 {[%clk 0:03:44.7]} 14. b4 {[%clk 0:04:06.8]}
14... Ncd7 {[%clk 0:03:23.1]} 15. dxc6 {[%clk 0:03:55.2]} 15... Bxc6 {[%clk
0:03:17.8]} 16. Nd5 {[%clk 0:03:37.1]} 16... Bxd5 {[%clk 0:03:14.1]} 17. cxd5
{[%clk 0:03:35.9]} 17... Qe8 {[%clk 0:03:00]} 18. hxg6 {[%clk 0:03:33.2]} 18...
fxg6 {[%clk 0:02:58.6]} 19. Bh6 {[%clk 0:03:29.1]} 19... Ng4 {[%clk 0:02:36.9]}
20. Bxg7 {[%clk 0:03:19.9]} 20... Kxg7 {[%clk 0:02:35.7]} 21. Ba4 {[%clk
0:02:59.1]} 21... h5 {[%clk 0:02:32.1]} 22. Rc1 {[%clk 0:02:40]} 22... a6 {[%clk
0:02:24.1]} 23. O-O {[%clk 0:02:24.8]} 23... b5 {[%clk 0:02:17.4]} 24. Bd1
{[%clk 0:02:22.4]} 24... Qe7 {[%clk 0:01:43.1]} 25. Ng5 {[%clk 0:02:09.5]} 25...
Nxf2 {[%clk 0:01:17.1]} 26. Ne6+ {[%clk 0:01:53.6]} 26... Kg8 {[%clk 0:01:14.6]}
27. Rxf2 {[%clk 0:01:46.6]} 27... Rxf2 {[%clk 0:01:09.6]} 28. Qxf2 {[%clk
0:01:45.6]} 28... Nf6 {[%clk 0:01:04.4]} 29. Rc7 {[%clk 0:01:36.7]} 29... Rd7
{[%clk 0:01:01.3]} 30. Rc8+ {[%clk 0:01:31.7]} 30... Kf7 {[%clk 0:00:47.2]} 31.
Ng5+ {[%clk 0:01:26.2]} 31... Kg7 {[%clk 0:00:42.6]} 32. Qe3 {[%clk 0:01:17.5]}
32... Ng4 {[%clk 0:00:39.9]} 33. Bxg4 {[%clk 0:01:12.3]} 33... hxg4 {[%clk
0:00:37.3]} 34. Ne6+ {[%clk 0:01:11]} 34... Kh7 {[%clk 0:00:31]} 35. Qg5 {[%clk
0:01:02.4]} 35... Rc7 {[%clk 0:00:22.4]} 36. Rxc7 {[%clk 0:00:57.4]} 1-0

[Event "Live Chess"]
[Site "Chess.com"]
[Date "2023.05.20"]
[Round "-"]
[White "SaraTang"]
[Black "seuen"]
[Result "0-1"]
[WhiteElo "168"]
[BlackElo "1142"]
[TimeControl "300"]
[EndTime "9:23:30 PDT"]
[Termination "seuen won by checkmate"]

1. e4 {[%clk 0:04:58.4]} 1... c5 {[%clk 0:04:58.9]} 2. Bc4 {[%clk 0:04:55.2]}
2... e6 {[%clk 0:04:57]} 3. Qf3 {[%clk 0:04:53.3]} 3... Nc6 {[%clk 0:04:55.5]}
4. Qxf7+ {[%clk 0:04:51.2]} 4... Kxf7 {[%clk 0:04:53.9]} 5. Nf3 {[%clk
0:04:45.1]} 5... Nf6 {[%clk 0:04:51.3]} 6. Ng5+ {[%clk 0:04:41.6]} 6... Ke8
{[%clk 0:04:48]} 7. Nxe6 {[%clk 0:04:39.2]} 7... dxe6 {[%clk 0:04:45.8]} 8. Bxe6
{[%clk 0:04:36.1]} 8... Bxe6 {[%clk 0:04:44.6]} 9. O-O {[%clk 0:04:32.8]} 9...
Bd6 {[%clk 0:04:41.1]} 10. Re1 {[%clk 0:04:28.6]} 10... Kf7 {[%clk 0:04:40.1]}
11. Re3 {[%clk 0:04:27.2]} 11... Re8 {[%clk 0:04:37.1]} 12. Rd3 {[%clk
0:04:25.7]} 12... Ne5 {[%clk 0:04:31.6]} 13. Rxd6 {[%clk 0:04:19.9]} 13... Qxd6
{[%clk 0:04:30.3]} 14. d3 {[%clk 0:04:15.6]} 14... Kg8 {[%clk 0:04:28.9]} 15.
Bg5 {[%clk 0:04:12.8]} 15... c4 {[%clk 0:04:17.5]} 16. dxc4 {[%clk 0:04:09.7]}
16... Nxc4 {[%clk 0:04:17.4]} 17. b3 {[%clk 0:04:08.2]} 17... Nd2 {[%clk
0:04:15.1]} 18. Nxd2 {[%clk 0:04:06.2]} 18... h6 {[%clk 0:04:11.7]} 19. Bxf6
{[%clk 0:04:04.7]} 19... gxf6 {[%clk 0:04:11.6]} 20. c4 {[%clk 0:04:02.6]} 20...
Qxd2 {[%clk 0:04:10.5]} 21. Kf1 {[%clk 0:03:59.8]} 21... Rad8 {[%clk 0:04:05.3]}
22. Re1 {[%clk 0:03:57.3]} 22... Qxa2 {[%clk 0:04:00.5]} 23. Re3 {[%clk
0:03:52.4]} 23... Rd1+ {[%clk 0:03:54.9]} 24. Re1 {[%clk 0:03:49.1]} 24... Rxe1+
{[%clk 0:03:53.2]} 25. Kxe1 {[%clk 0:03:47.7]} 25... Rd8 {[%clk 0:03:53.1]} 26.
b4 {[%clk 0:03:45.3]} 26... Qxc4 {[%clk 0:03:52.3]} 27. b5 {[%clk 0:03:41.1]}
27... Qd3 {[%clk 0:03:49.5]} 28. e5 {[%clk 0:03:39.3]} 28... Qd2+ {[%clk
0:03:48.1]} 29. Kf1 {[%clk 0:03:36.6]} 29... Qd1# {[%clk 0:03:46.9]} 0-1

[Event "Live Chess"]
[Site "Chess.com"]
[Date "2023.05.20"]
[Round "-"]
[White "DRS44"]
[Black "wot-not"]
[Result "0-1"]
[WhiteElo "1406"]
[BlackElo "1459"]
[TimeControl "300"]
[EndTime "9:23:38 PDT"]
[Termination "wot-not won on time"]

1. e4 {[%clk 0:04:50]} 1... e5 {[%clk 0:04:58.8]} 2. d4 {[%clk 0:04:45.9]} 2...
d6 {[%clk 0:04:58.3]} 3. dxe5 {[%clk 0:04:41.7]} 3... dxe5 {[%clk 0:04:57.5]} 4.
Qxd8+ {[%clk 0:04:38.7]} 4... Kxd8 {[%clk 0:04:57.1]} 5. Bg5+ {[%clk 0:04:35]}
5... f6 {[%clk 0:04:56]} 6. Be3 {[%clk 0:04:32.5]} 6... Be6 {[%clk 0:04:52.2]}
7. Nc3 {[%clk 0:04:28.2]} 7... Nc6 {[%clk 0:04:44]} 8. O-O-O+ {[%clk 0:04:15.7]}
8... Bd6 {[%clk 0:04:43]} 9. Bc5 {[%clk 0:04:10.2]} 9... Ke7 {[%clk 0:04:38.5]}
10. Bxd6+ {[%clk 0:04:04.8]} 10... cxd6 {[%clk 0:04:37.4]} 11. Nd5+ {[%clk
0:04:02.4]} 11... Bxd5 {[%clk 0:04:36.3]} 12. exd5 {[%clk 0:03:58.5]} 12... Nd4
{[%clk 0:04:18.6]} 13. c3 {[%clk 0:03:41]} 13... Nf5 {[%clk 0:04:15.2]} 14. Bd3
{[%clk 0:03:33]} 14... Nfh6 {[%clk 0:04:04.6]} 15. g3 {[%clk 0:03:21.3]} 15...
Nf7 {[%clk 0:03:39.2]} 16. f4 {[%clk 0:03:15.8]} 16... Ngh6 {[%clk 0:03:29.5]}
17. fxe5 {[%clk 0:03:09.2]} 17... fxe5 {[%clk 0:03:28.8]} 18. Nf3 {[%clk
0:03:04.2]} 18... g6 {[%clk 0:03:23.6]} 19. h4 {[%clk 0:02:55.9]} 19... Nf5
{[%clk 0:03:21.3]} 20. g4 {[%clk 0:02:48.9]} 20... Ng7 {[%clk 0:03:09.1]} 21. h5
{[%clk 0:02:40.3]} 21... g5 {[%clk 0:02:52.3]} 22. h6 {[%clk 0:02:23]} 22... Ne8
{[%clk 0:02:48.2]} 23. Rh5 {[%clk 0:02:15]} 23... Nc7 {[%clk 0:02:43.7]} 24.
Nxg5 {[%clk 0:02:03.8]} 24... Nxg5 {[%clk 0:02:42.5]} 25. Rxg5 {[%clk
0:02:01.8]} 25... Rhg8 {[%clk 0:02:28.6]} 26. Rg7+ {[%clk 0:01:56.5]} 26... Rxg7
{[%clk 0:02:26.8]} 27. hxg7 {[%clk 0:01:54]} 27... Kf7 {[%clk 0:02:15.3]} 28.
Rh1 {[%clk 0:01:47.9]} 28... Nxd5 {[%clk 0:02:10.5]} 29. Rxh7 {[%clk 0:01:39.6]}
29... Rg8 {[%clk 0:02:03.1]} 30. Bc4 {[%clk 0:01:30.2]} 30... Ke6 {[%clk
0:01:59.8]} 31. Rh6+ {[%clk 0:01:21.5]} 31... Ke7 {[%clk 0:01:51.8]} 32. Bxd5
{[%clk 0:01:18.5]} 32... Rxg7 {[%clk 0:01:51.1]} 33. Be4 {[%clk 0:01:11.4]}
33... Rxg4 {[%clk 0:01:44.4]} 34. Rh7+ {[%clk 0:01:08.6]} 34... Kf6 {[%clk
0:01:42.1]} 35. Bc2 {[%clk 0:01:04.6]} 35... e4 {[%clk 0:01:27.2]} 36. Rh6+
{[%clk 0:00:58.6]} 36... Ke5 {[%clk 0:01:24.4]} 37. Rh5+ {[%clk 0:00:53.4]}
37... Kf4 {[%clk 0:01:21.4]} 38. Rh8 {[%clk 0:00:44.8]} 38... e3 {[%clk
0:01:19.8]} 39. Rf8+ {[%clk 0:00:40.9]} 39... Ke5 {[%clk 0:01:17.1]} 40. Re8+
{[%clk 0:00:38.6]} 40... Kf4 {[%clk 0:01:15.3]} 41. Rf8+ {[%clk 0:00:37]} 41...
Kg3 {[%clk 0:01:14.2]} 42. Bf5 {[%clk 0:00:27.3]} 42... Ra4 {[%clk 0:01:00.7]}
43. a3 {[%clk 0:00:20.7]} 43... Ra5 {[%clk 0:00:54.8]} 44. Rg8+ {[%clk
0:00:13.5]} 44... Kf4 {[%clk 0:00:50.8]} 45. Rf8 {[%clk 0:00:11]} 45... Rxf5
{[%clk 0:00:49.2]} 46. Rxf5+ {[%clk 0:00:08.9]} 46... Kxf5 {[%clk 0:00:48.5]}
47. Kc2 {[%clk 0:00:04.3]} 47... Kf4 {[%clk 0:00:48.1]} 48. Kd3 {[%clk
0:00:03.3]} 48... Kf3 {[%clk 0:00:47.4]} 0-1

[Event "Live Chess"]
[Site "Chess.com"]
[Date "2023.05.20"]
[Round "-"]
[White "ranvir123"]
[Black "Delacorta"]
[Result "0-1"]
[WhiteElo "837"]
[BlackElo "1416"]
[TimeControl "300"]
[EndTime "9:23:45 PDT"]
[Termination "Delacorta won by resignation"]

1. e4 {[%clk 0:04:58.3]} 1... e6 {[%clk 0:04:58.3]} 2. d4 {[%clk 0:04:56.7]}
2... d5 {[%clk 0:04:57.6]} 3. e5 {[%clk 0:04:56]} 3... c5 {[%clk 0:04:56.4]} 4.
Nf3 {[%clk 0:04:54.7]} 4... Nc6 {[%clk 0:04:55.5]} 5. Bb5 {[%clk 0:04:53.6]}
5... Bd7 {[%clk 0:04:50.3]} 6. Nc3 {[%clk 0:04:51.8]} 6... Qb6 {[%clk
0:04:46.9]} 7. Bxc6 {[%clk 0:04:43.2]} 7... Bxc6 {[%clk 0:04:41.4]} 8. Bf4
{[%clk 0:04:31.9]} 8... Qxb2 {[%clk 0:04:34.8]} 9. Rb1 {[%clk 0:04:20.2]} 9...
Qxc3+ {[%clk 0:04:33.2]} 10. Qd2 {[%clk 0:04:17.4]} 10... Qxd2+ {[%clk
0:04:30.9]} 11. Bxd2 {[%clk 0:04:14.9]} 0-1

[Event "Live Chess"]
[Site "Chess.com"]
[Date "2023.05.20"]
[Round "-"]
[White "BillW-GrangerIN"]
[Black "MJMykh"]
[Result "0-1"]
[WhiteElo "181"]
[BlackElo "952"]
[TimeControl "300"]
[EndTime "9:23:47 PDT"]
[Termination "MJMykh won by resignation"]

1. d4 {[%clk 0:04:56.1]} 1... d5 {[%clk 0:04:59]} 2. Bf4 {[%clk 0:04:52.9]} 2...
Nc6 {[%clk 0:04:56.6]} 3. e3 {[%clk 0:04:48.2]} 3... a6 {[%clk 0:04:54.5]} 4.
Bd3 {[%clk 0:04:39.9]} 4... Nf6 {[%clk 0:04:52.7]} 5. Nf3 {[%clk 0:04:31.3]}
5... h6 {[%clk 0:04:48.6]} 6. Nbd2 {[%clk 0:04:24.2]} 6... e6 {[%clk 0:04:47]}
7. c3 {[%clk 0:04:22.2]} 7... Be7 {[%clk 0:04:43.8]} 8. O-O {[%clk 0:04:14.6]}
8... O-O {[%clk 0:04:42.6]} 9. Qe2 {[%clk 0:03:47.8]} 9... Bd6 {[%clk 0:04:39]}
10. Bg3 {[%clk 0:03:37.5]} 10... Bxg3 {[%clk 0:04:36.7]} 11. fxg3 {[%clk
0:03:26.3]} 11... Qd6 {[%clk 0:04:33.3]} 12. Ne4 {[%clk 0:02:44]} 12... dxe4
{[%clk 0:04:29]} 13. Bc4 {[%clk 0:02:28]} 13... exf3 {[%clk 0:04:26.2]} 14. Qxf3
{[%clk 0:02:24.2]} 14... e5 {[%clk 0:04:18.8]} 15. dxe5 {[%clk 0:02:11.8]} 15...
Nxe5 {[%clk 0:04:17.6]} 16. Qf5 {[%clk 0:01:46.5]} 16... Bxf5 {[%clk 0:04:14.2]}
17. Rfd1 {[%clk 0:01:27.2]} 17... Qb6 {[%clk 0:04:00]} 18. Rd7 {[%clk 0:01:16]}
18... Nfxd7 {[%clk 0:03:43.8]} 0-1

[Event "Live Chess"]
[Site "Chess.com"]
[Date "2023.05.20"]
[Round "-"]
[White "MrDodgy"]
[Black "TobyQuaite"]
[Result "1-0"]
[WhiteElo "2323"]
[BlackElo "1710"]
[TimeControl "300"]
[EndTime "9:23:52 PDT"]
[Termination "MrDodgy won by resignation"]

1. d4 {[%clk 0:04:56.6]} 1... e6 {[%clk 0:04:59.2]} 2. e4 {[%clk 0:04:55.1]}
2... d5 {[%clk 0:04:58]} 3. Nc3 {[%clk 0:04:53.8]} 3... Bb4 {[%clk 0:04:56.9]}
4. a3 {[%clk 0:04:52.4]} 4... Bxc3+ {[%clk 0:04:51.5]} 5. bxc3 {[%clk
0:04:52.3]} 5... dxe4 {[%clk 0:04:50.7]} 6. Qg4 {[%clk 0:04:49]} 6... Nf6 {[%clk
0:04:45.1]} 7. Qxg7 {[%clk 0:04:47.6]} 7... Rg8 {[%clk 0:04:44.7]} 8. Qh6 {[%clk
0:04:46.6]} 8... Rg6 {[%clk 0:04:42.1]} 9. Qh4 {[%clk 0:04:44.9]} 9... Nc6
{[%clk 0:04:39.3]} 10. Ne2 {[%clk 0:04:43.5]} 10... Bd7 {[%clk 0:04:29.6]} 11.
Ng3 {[%clk 0:04:34.8]} 11... Qe7 {[%clk 0:04:28.5]} 12. Bg5 {[%clk 0:04:29.1]}
12... h6 {[%clk 0:03:57.8]} 13. Bxh6 {[%clk 0:04:24.5]} 13... O-O-O {[%clk
0:03:56.9]} 14. Bg5 {[%clk 0:04:23.2]} 14... Rxg5 {[%clk 0:03:24]} 15. Qxg5
{[%clk 0:04:20.7]} 15... Nd5 {[%clk 0:03:23.5]} 16. Qxe7 {[%clk 0:04:15.9]}
16... Ncxe7 {[%clk 0:03:23.4]} 17. Nxe4 {[%clk 0:03:57.3]} 17... f5 {[%clk
0:03:22.3]} 18. Nc5 {[%clk 0:03:50.4]} 18... Nxc3 {[%clk 0:03:20.4]} 19. Kd2
{[%clk 0:03:46.1]} 19... Ncd5 {[%clk 0:03:12.5]} 20. c4 {[%clk 0:03:40.9]} 20...
Nf6 {[%clk 0:03:05.6]} 21. f3 {[%clk 0:03:34]} 21... b6 {[%clk 0:03:04.1]} 22.
Nxd7 {[%clk 0:03:29.6]} 22... Rxd7 {[%clk 0:03:04]} 23. Kc3 {[%clk 0:03:28.2]}
23... Nc6 {[%clk 0:02:58.9]} 24. Rd1 {[%clk 0:03:24.3]} 24... e5 {[%clk
0:02:56.8]} 25. d5 {[%clk 0:03:21.2]} 25... Nd4 {[%clk 0:02:56.3]} 26. Rxd4
{[%clk 0:03:13.3]} 26... exd4+ {[%clk 0:02:55.6]} 27. Kxd4 {[%clk 0:03:13.1]}
27... c6 {[%clk 0:02:54.8]} 28. Bd3 {[%clk 0:03:11.7]} 1-0

[Event "Live Chess"]
[Site "Chess.com"]
[Date "2023.05.20"]
[Round "-"]
[White "ReeceHockton"]
[Black "zdanevych"]
[Result "0-1"]
[WhiteElo "328"]
[BlackElo "1490"]
[TimeControl "300"]
[EndTime "9:23:52 PDT"]
[Termination "zdanevych won by checkmate"]

1. d4 {[%clk 0:04:56.1]} 1... d5 {[%clk 0:04:59]} 2. Nf3 {[%clk 0:04:52.1]} 2...
c5 {[%clk 0:04:57.7]} 3. c3 {[%clk 0:04:42.8]} 3... Nc6 {[%clk 0:04:56]} 4. dxc5
{[%clk 0:04:40.8]} 4... e5 {[%clk 0:04:53.7]} 5. e3 {[%clk 0:04:34.2]} 5... Bxc5
{[%clk 0:04:50.7]} 6. Bb5 {[%clk 0:04:30.7]} 6... e4 {[%clk 0:04:49.6]} 7. Nd4
{[%clk 0:04:28.5]} 7... Bd7 {[%clk 0:04:45.8]} 8. Nxc6 {[%clk 0:04:20.5]} 8...
bxc6 {[%clk 0:04:45.7]} 9. Ba4 {[%clk 0:04:15.5]} 9... Nf6 {[%clk 0:04:43.7]}
10. Nd2 {[%clk 0:04:12.4]} 10... O-O {[%clk 0:04:41.3]} 11. f4 {[%clk 0:04:10]}
11... exf3 {[%clk 0:04:39.2]} 12. gxf3 {[%clk 0:04:08.4]} 12... Bxe3 {[%clk
0:04:37]} 13. Qe2 {[%clk 0:04:06.2]} 13... Re8 {[%clk 0:04:28.6]} 14. Rf1 {[%clk
0:03:50.2]} 14... Bf4 {[%clk 0:04:15.9]} 15. Nb3 {[%clk 0:03:42.9]} 15... Rxe2+
{[%clk 0:04:14.3]} 16. Kxe2 {[%clk 0:03:40.9]} 16... Qe7+ {[%clk 0:04:10]} 17.
Kf2 {[%clk 0:03:31.9]} 17... Bxc1 {[%clk 0:04:05]} 18. Raxc1 {[%clk 0:03:29.5]}
18... Re8 {[%clk 0:03:45.5]} 19. Rce1 {[%clk 0:03:26.4]} 19... Qd6 {[%clk
0:03:43.5]} 20. Na5 {[%clk 0:03:13.9]} 20... Qxh2# {[%clk 0:03:40.5]} 0-1

[Event "Live Chess"]
[Site "Chess.com"]
[Date "2023.05.20"]
[Round "-"]
[White "SimpleHarmonic1"]
[Black "onemoretime1975"]
[Result "1-0"]
[WhiteElo "2073"]
[BlackElo "1970"]
[TimeControl "300"]
[EndTime "9:23:53 PDT"]
[Termination "SimpleHarmonic1 won on time"]

1. d4 {[%clk 0:04:59.2]} 1... d5 {[%clk 0:04:56.5]} 2. c4 {[%clk 0:04:58.4]}
2... e6 {[%clk 0:04:54.8]} 3. Nc3 {[%clk 0:04:58]} 3... Nf6 {[%clk 0:04:53]} 4.
cxd5 {[%clk 0:04:56]} 4... exd5 {[%clk 0:04:51.4]} 5. Bg5 {[%clk 0:04:55.6]}
5... c6 {[%clk 0:04:45.4]} 6. e3 {[%clk 0:04:54.7]} 6... Be7 {[%clk 0:04:38.9]}
7. Bd3 {[%clk 0:04:53]} 7... O-O {[%clk 0:04:29.4]} 8. Qc2 {[%clk 0:04:51.9]}
8... Nbd7 {[%clk 0:04:23.2]} 9. Nf3 {[%clk 0:04:49.5]} 9... Re8 {[%clk
0:04:19.8]} 10. O-O {[%clk 0:04:48.1]} 10... Nf8 {[%clk 0:04:17.9]} 11. h3
{[%clk 0:04:47.3]} 11... Ng6 {[%clk 0:04:14.8]} 12. Rab1 {[%clk 0:04:40.3]}
12... Nd7 {[%clk 0:04:02.2]} 13. Bxe7 {[%clk 0:04:37.6]} 13... Qxe7 {[%clk
0:03:57.6]} 14. b4 {[%clk 0:04:37.5]} 14... b5 {[%clk 0:03:26.5]} 15. Ne2 {[%clk
0:04:27]} 15... Bb7 {[%clk 0:03:18.1]} 16. Ng3 {[%clk 0:04:24.6]} 16... Nb6
{[%clk 0:03:05.3]} 17. Nf5 {[%clk 0:04:19]} 17... Qd8 {[%clk 0:02:59.7]} 18. Qc5
{[%clk 0:03:57.7]} 18... Nc4 {[%clk 0:02:50.6]} 19. Bxc4 {[%clk 0:03:51.3]}
19... dxc4 {[%clk 0:02:39.8]} 20. Nd6 {[%clk 0:03:46.5]} 20... Re7 {[%clk
0:02:19.4]} 21. Nxb7 {[%clk 0:03:42.8]} 21... Rxb7 {[%clk 0:02:17.8]} 22. Qxc6
{[%clk 0:03:42.4]} 22... Rab8 {[%clk 0:02:08.8]} 23. Qe4 {[%clk 0:03:29.9]}
23... Re7 {[%clk 0:02:05.2]} 24. Qc2 {[%clk 0:03:13]} 24... Qd5 {[%clk
0:01:56.3]} 25. Rfc1 {[%clk 0:03:03]} 25... Rb6 {[%clk 0:01:53.2]} 26. a4 {[%clk
0:02:57.9]} 26... a6 {[%clk 0:01:50.6]} 27. Nd2 {[%clk 0:02:24.8]} 27... Nh4
{[%clk 0:01:43.8]} 28. e4 {[%clk 0:01:51.2]} 28... Qxd4 {[%clk 0:01:33.6]} 29.
Nb3 {[%clk 0:01:41.1]} 29... Qf6 {[%clk 0:01:11.8]} 30. Nc5 {[%clk 0:01:30.6]}
30... Qg5 {[%clk 0:01:03.2]} 31. g3 {[%clk 0:01:08.9]} 31... Rg6 {[%clk
0:00:57.3]} 32. Rd1 {[%clk 0:01:00]} 32... h6 {[%clk 0:00:40.5]} 33. axb5 {[%clk
0:00:54.1]} 33... axb5 {[%clk 0:00:38.2]} 34. Rd8+ {[%clk 0:00:38.5]} 34... Kh7
{[%clk 0:00:36.3]} 35. Rd5 {[%clk 0:00:37.5]} 35... Re5 {[%clk 0:00:34.3]} 36.
Rxe5 {[%clk 0:00:24.9]} 36... Nf3+ {[%clk 0:00:32.4]} 37. Kg2 {[%clk 0:00:22.2]}
37... Nxe5 {[%clk 0:00:31.7]} 38. Rd1 {[%clk 0:00:19.4]} 38... Nd3 {[%clk
0:00:29.9]} 39. Nxd3 {[%clk 0:00:17.2]} 39... cxd3 {[%clk 0:00:28.1]} 40. Qxd3
{[%clk 0:00:15.7]} 40... h5 {[%clk 0:00:27.2]} 41. f4 {[%clk 0:00:14.3]} 41...
Qf6 {[%clk 0:00:25.1]} 42. e5 {[%clk 0:00:12.6]} 42... Qe6 {[%clk 0:00:24.1]}
43. f5 {[%clk 0:00:10.7]} 43... Qa2+ {[%clk 0:00:21.2]} 44. Rd2 {[%clk
0:00:09.1]} 44... Rxg3+ {[%clk 0:00:13.4]} 45. Kxg3 {[%clk 0:00:07.7]} 45... h4+
{[%clk 0:00:12.5]} 46. Kg2 {[%clk 0:00:06.4]} 46... Qa1 {[%clk 0:00:10]} 47. f6+
{[%clk 0:00:05.7]} 47... g6 {[%clk 0:00:08.5]} 48. Qd4 {[%clk 0:00:04.8]} 48...
Qe1 {[%clk 0:00:07.3]} 49. Rf2 {[%clk 0:00:01.3]} 49... Qe4+ {[%clk 0:00:01.6]}
50. Qxe4 {[%clk 0:00:00.3]} 50... Kg8 {[%clk 0:00:01]} 51. Qxh4 {[%clk
0:00:00.2]} 51... Kf8 {[%clk 0:00:00.2]} 52. Qg5 {[%clk 0:00:00.1]} 1-0

[Event "Live Chess"]
[Site "Chess.com"]
[Date "2023.05.20"]
[Round "-"]
[White "RedRook90"]
[Black "AttackingSnowLeopard"]
[Result "0-1"]
[WhiteElo "1968"]
[BlackElo "1967"]
[TimeControl "300"]
[EndTime "9:23:54 PDT"]
[Termination "AttackingSnowLeopard won by resignation"]

1. c4 {[%clk 0:04:59.4]} 1... e5 {[%clk 0:04:58.7]} 2. g3 {[%clk 0:04:58.8]}
2... Nf6 {[%clk 0:04:57]} 3. Bg2 {[%clk 0:04:58.4]} 3... c6 {[%clk 0:04:56]} 4.
Nf3 {[%clk 0:04:57.3]} 4... e4 {[%clk 0:04:55]} 5. Nd4 {[%clk 0:04:57]} 5... d5
{[%clk 0:04:54.5]} 6. cxd5 {[%clk 0:04:56.8]} 6... Qxd5 {[%clk 0:04:53.8]} 7.
Nc2 {[%clk 0:04:56.3]} 7... Qh5 {[%clk 0:04:52.5]} 8. h3 {[%clk 0:04:55.8]} 8...
Bc5 {[%clk 0:04:48.2]} 9. Nc3 {[%clk 0:04:47]} 9... Qg6 {[%clk 0:04:44.8]} 10.
b4 {[%clk 0:04:40]} 10... Bb6 {[%clk 0:04:43]} 11. Ne3 {[%clk 0:04:33.4]} 11...
O-O {[%clk 0:04:38.2]} 12. O-O {[%clk 0:04:29.8]} 12... Nbd7 {[%clk 0:04:34]}
13. Qc2 {[%clk 0:04:28.9]} 13... Re8 {[%clk 0:04:30.6]} 14. Bb2 {[%clk
0:04:26.8]} 14... Bxe3 {[%clk 0:04:02.3]} 15. dxe3 {[%clk 0:04:25.1]} 15... Nb6
{[%clk 0:04:01.9]} 16. Rfd1 {[%clk 0:03:54.4]} 16... Bf5 {[%clk 0:03:48.6]} 17.
Na4 {[%clk 0:03:50.4]} 17... Nbd5 {[%clk 0:03:39.4]} 18. a3 {[%clk 0:03:47.6]}
18... Qh5 {[%clk 0:03:24.2]} 19. g4 {[%clk 0:03:45.4]} 19... Bxg4 {[%clk
0:03:16.5]} 20. Rxd5 {[%clk 0:03:26.2]} 20... Nxd5 {[%clk 0:02:49.8]} 21. hxg4
{[%clk 0:03:24]} 21... Qxg4 {[%clk 0:02:49.3]} 22. Nc5 {[%clk 0:03:21.2]} 22...
f5 {[%clk 0:02:42.2]} 23. Qc4 {[%clk 0:03:07.3]} 23... Kh8 {[%clk 0:02:28.8]}
24. Nxb7 {[%clk 0:02:55.8]} 24... Re6 {[%clk 0:02:24.6]} 25. Qc1 {[%clk
0:02:27.8]} 25... Rg6 {[%clk 0:02:16.8]} 26. Qf1 {[%clk 0:02:26]} 26... f4
{[%clk 0:02:08.3]} 27. f3 {[%clk 0:02:02.6]} 27... Qg5 {[%clk 0:01:53.7]} 28.
Bd4 {[%clk 0:01:52.8]} 28... fxe3 {[%clk 0:01:45.8]} 29. Nc5 {[%clk 0:01:42.2]}
29... Nf4 {[%clk 0:01:30.6]} 30. Bxe3 {[%clk 0:01:27.3]} 30... Qxg2+ {[%clk
0:01:15.8]} 31. Qxg2 {[%clk 0:01:25.2]} 31... Nxg2 {[%clk 0:01:15.7]} 32. Bd4
{[%clk 0:01:10]} 32... exf3 {[%clk 0:01:10.9]} 33. exf3 {[%clk 0:01:07.2]} 33...
Rd8 {[%clk 0:00:52.4]} 34. Bc3 {[%clk 0:01:03.2]} 34... h6 {[%clk 0:00:49.6]}
35. Kf2 {[%clk 0:01:01.7]} 35... Nf4 {[%clk 0:00:47]} 36. Re1 {[%clk 0:00:57.2]}
36... Nd3+ {[%clk 0:00:45.1]} 37. Nxd3 {[%clk 0:00:56.9]} 37... Rxd3 {[%clk
0:00:44.6]} 38. Re8+ {[%clk 0:00:55.9]} 38... Kh7 {[%clk 0:00:43.5]} 39. Re3
{[%clk 0:00:51.9]} 39... Rxe3 {[%clk 0:00:42.5]} 40. Kxe3 {[%clk 0:00:51.8]}
40... h5 {[%clk 0:00:41.6]} 41. Be5 {[%clk 0:00:51.5]} 41... Re6 {[%clk
0:00:40.5]} 42. Ke4 {[%clk 0:00:49.6]} 42... h4 {[%clk 0:00:39.5]} 43. Kd4
{[%clk 0:00:48.2]} 43... Rxe5 {[%clk 0:00:38]} 0-1